[Event "POL-chT 2 Liga 2019"]
[Site "Poronin"]
[Date "2019.09.14"]
[Round "8.31"]
[White "Jedynak, Radoslaw"]
[Black "Kumala, Aleksander"]
[Result "1-0"]
[ECO "C04"]
[WhiteElo "2341"]
[BlackElo "2203"]
[Annotator "NA"]
[PlyCount "93"]
[EventDate "2019.09.07"]
[EventType "team-tourn"]
[EventCountry "POL"]
[SourceTitle "playchess.com"]
[Source "ChessBase"]
[SourceQuality "1"]
[TimeControl "40/5400+30:1800+30"]

1. d4 {[%emt 0:00:00]} e6 {[%emt 0:00:00]} 2. e4 {[%emt 0:00:08]} d5 {[%emt 0:00:00]} 3. Nd2 {[%emt 0:00:16]} Nc6 {[%emt 0:00:00]} 4. Ngf3 {[%emt 0:00:56]} Nf6 {[%emt 0:00:00]} 5. e5 {[%emt 0:00:15]} Nd7 {[%emt 0:00:00]} 6. Be2 {[%emt 0:11:11]} f6 {[%emt 0:00:04]} 7. exf6 {[%emt 0:00:08]} Qxf6 {[%emt 0:00:09]} 8. Nf1 {[%emt 0:00:10]} Bd6 {[%emt 0:00:13]} 9. Ne3 {[%emt 0:00:05]} Ne7 {[%emt 0:03:44]} 10. O-O {[%emt 0:15:42]} c6 {[%emt 0:05:24]} 11. Bd3 {[%emt 0:07:01]} h5 {[%emt 0:07:41]} 12. c4 {[%emt 0:10:08]} Nf8 {[%emt 0:00:44]} 13. h4 {[%emt 0:01:41]} Nfg6 {[%emt 0:04:36]} 14. g3 {[%emt 0:02:17]} Bd7 {[%emt 0:04:32]} 15. Ng2 {[%emt 0:13:05]} O-O-O {[%emt 0:07:25]} 16. Bg5 {[%emt 0:01:17]} Qf7 {[%emt 0:00:12]} 17. Bxg6 {[%emt 0:01:39]} Nxg6 {[%emt 0:01:17]} 18. Bxd8 {[%emt 0:00:07]} Kxd8 {[%emt 0:01:31]} 19. Ng5 {[%emt 0:02:32]} Qf6 {[%emt 0:00:58]} 20. c5 {[%emt 0:02:02]} Bc7 {[%emt 0:00:30]} 21. f4 {[%emt 0:06:11]} Ne7 {[%emt 0:00:58]} 22. Ne3 {[%emt 0:04:04]} g6 {[%emt 0:01:05]} 23. b4 {[%emt 0:01:14]} Kc8 {[%emt 0:00:28]} 24. a4 {[%emt 0:00:32]} a6 {[%emt 0:00:29]} 25. Qd3 {[%emt 0:03:55]} Re8 {[%emt 0:01:04]} 26. Nf3 {[%emt 0:00:36]} Nf5 {[%emt 0:02:48]} 27. Nxf5 {[%emt 0:00:16]} Qxf5 {[%emt 0:00:12]} 28. Qxf5 {[%emt 0:00:31]} gxf5 {[%emt 0:00:32]} 29. Rfe1 {[%emt 0:06:23]} Bd8 {[%emt 0:03:42]} 30. Re2 {[%emt 0:01:39]} Bf6 {[%emt 0:02:17]} 31. Rae1 {[%emt 0:02:18]} Re7 {[%emt 0:02:38]} 32. Kg2 {[%emt 0:00:21]} Kd8 {[%emt 0:00:27]} 33. Ng5 {[%emt 0:03:51]} Bxg5 {[%emt 0:00:25]} 34. hxg5 {[%emt 0:02:32]} Re8 {[%emt 0:03:03]} 35. Rh1 {[%emt 0:00:31]} Rh8 {[%emt 0:00:06]} 36. g6 {[%emt 0:00:36]} Rh6 {[%emt 0:02:40]} 37. g7 {[%emt 0:00:08]} Rg6 {[%emt 0:00:06]} 38. Rxh5 {[%emt 0:00:04]} Rxg7 {[%emt 0:00:06]} 39. Kf3 {[%emt 0:00:49]} Be8 {[%emt 0:05:49]} 40. Rh8 {[%emt 0:00:00]} Kd7 {[%emt 0:00:00]} 41. Reh2 {[%emt 0:00:29]} Bg6 {[%emt 0:00:23]} 42. Rb8 {[%emt 0:01:46]} Kc7 {[%emt 0:00:14]} 43. Rhh8 {[%emt 0:00:12]} Bh5+ {[%emt 0:00:23]} 44. Kf2 {[%emt 0:00:05]} Rf7 {[%emt 0:01:44]} 45. Rhc8+ {[%emt 0:00:55]} Kd7 {[%emt 0:00:07]} 46. Rd8+ {[%emt 0:00:08]} Ke7 {[%emt 0:00:08]} 47. Rh8 {[%emt 0:00:10]} 1-0

[Event "POL-chT 2 Liga 2019"]
[Site "Poronin"]
[Date "2019.09.14"]
[Round "8.32"]
[White "Cajbel, Maciej"]
[Black "Mickiewicz, Piotr"]
[Result "1-0"]
[ECO "B24"]
[WhiteElo "2199"]
[BlackElo "2226"]
[Annotator "NA"]
[PlyCount "103"]
[EventDate "2019.09.07"]
[EventType "team-tourn"]
[EventCountry "POL"]
[SourceTitle "playchess.com"]
[Source "ChessBase"]
[SourceQuality "1"]
[TimeControl "40/5400+30:1800+30"]

1. e4 {[%emt 0:00:00]} c5 {[%emt 0:00:00]} 2. Nc3 {[%emt 0:00:00]} Nc6 {[%emt 0:00:28]} 3. Bb5 {[%emt 0:00:42]} Nd4 {[%emt 0:00:41]} 4. Bc4 {[%emt 0:00:08]} e6 {[%emt 0:00:19]} 5. Nge2 {[%emt 0:00:38]} Nf6 {[%emt 0:00:12]} 6. O-O {[%emt 0:00:35]} a6 {[%emt 0:03:11]} 7. a4 {[%emt 0:00:15]} d5 {[%emt 0:03:47]} 8. exd5 {[%emt 0:00:34]} exd5 {[%emt 0:00:06]} 9. Ba2 {[%emt 0:00:21]} Bd6 {[%emt 0:02:39]} 10. d3 {[%emt 0:15:27]} O-O {[%emt 0:17:50]} 11. Nxd4 {[%emt 0:11:52]} cxd4 {[%emt 0:00:15]} 12. Ne2 {[%emt 0:00:06]} Ng4 {[%emt 0:11:36]} 13. f4 {[%emt 0:29:24]} Qh4 {[%emt 0:21:10]} 14. h3 {[%emt 0:01:01]} Re8 {[%emt 0:14:16]} 15. Bxd5 {[%emt 0:12:11]} Ne3 {[%emt 0:09:15]} 16. Bxe3 {[%emt 0:00:30]} Rxe3 {[%emt 0:00:03]} 17. Qe1 {[%emt 0:13:27]} Qe7 {[%emt 0:02:24]} 18. Rf2 {[%emt 0:00:17]} Bd7 {[%emt 0:03:52]} 19. Qd2 {[%emt 0:03:34]} Re8 {[%emt 0:02:47]} 20. Nxd4 {[%emt 0:02:26]} Bc5 {[%emt 0:00:04]} 21. c3 {[%emt 0:00:07]} Bxd4 {[%emt 0:02:49]} 22. cxd4 {[%emt 0:00:04]} Qd6 {[%emt 0:00:09]} 23. Bxb7 {[%emt 0:05:00]} Qxd4 {[%emt 0:00:08]} 24. Kh2 {[%emt 0:02:30]} Rxd3 {[%emt 0:00:46]} 25. Qc2 {[%emt 0:00:23]} Bf5 {[%emt 0:00:03]} 26. Qc6 {[%emt 0:00:29]} Rxh3+ {[%emt 0:00:25]} 27. Kg1 {[%emt 0:00:16]} Rhe3 {[%emt 0:00:53]} 28. Bxa6 {[%emt 0:01:05]} Re1+ {[%emt 0:02:58]} 29. Rxe1 {[%emt 0:00:09]} Rxe1+ {[%emt 0:00:02]} 30. Kh2 {[%emt 0:00:19]} h5 {[%emt 0:00:33]} 31. Qa8+ {[%emt 0:00:33]} Kh7 {[%emt 0:00:03]} 32. Qf3 {[%emt 0:00:08]} g6 {[%emt 0:01:01]} 33. Rf1 {[%emt 0:01:17]} Rxf1 {[%emt 0:01:09]} 34. Qxf1 {[%emt 0:00:25]} Qxb2 {[%emt 0:00:34]} 35. Bc4 {[%emt 0:00:28]} Kg7 {[%emt 0:00:10]} 36. Qe1 {[%emt 0:00:37]} Kf8 {[%emt 0:00:49]} 37. Qe5 {[%emt 0:00:37]} Qxe5 {[%emt 0:00:29]} 38. fxe5 {[%emt 0:00:02]} Be4 {[%emt 0:00:18]} 39. a5 {[%emt 0:00:46]} Ke7 {[%emt 0:00:11]} 40. a6 {[%emt 0:00:00]} g5 {[%emt 0:00:00]} 41. g3 {[%emt 0:11:00]} Kd8 {[%emt 0:16:24]} 42. Bxf7 {[%emt 0:03:07]} h4 {[%emt 0:00:02]} 43. gxh4 {[%emt 0:00:58]} gxh4 {[%emt 0:00:02]} 44. Bc4 {[%emt 0:06:32]} Kc7 {[%emt 0:01:47]} 45. Kh3 {[%emt 0:00:18]} Kb6 {[%emt 0:02:16]} 46. Kxh4 {[%emt 0:00:37]} Kc5 {[%emt 0:04:03]} 47. e6 {[%emt 0:00:11]} Kd6 {[%emt 0:07:56]} 48. Kg5 {[%emt 0:01:21]} Bc6 {[%emt 0:02:20]} 49. Kf6 {[%emt 0:00:26]} Ba8 {[%emt 0:00:43]} 50. e7 {[%emt 0:02:04]} Bc6 {[%emt 0:00:24]} 51. a7 {[%emt 0:01:28]} Kd7 {[%emt 0:00:28]} 52. Bb5 {[%emt 0:00:54]} 1-0

[Event "POL-chT 2 Liga 2019"]
[Site "Poronin"]
[Date "2019.09.14"]
[Round "8.33"]
[White "Mazurkiewicz, Michal"]
[Black "Zurkowski, Andrzej"]
[Result "1/2-1/2"]
[ECO "A05"]
[WhiteElo "2215"]
[BlackElo "2029"]
[Annotator "NA"]
[PlyCount "107"]
[EventDate "2019.09.07"]
[EventType "team-tourn"]
[EventCountry "POL"]
[SourceTitle "playchess.com"]
[Source "ChessBase"]
[SourceQuality "1"]
[TimeControl "40/5400+30:1800+30"]

1. Nf3 {[%emt 0:00:00]} Nf6 {[%emt 0:00:00]} 2. g3 {[%emt 0:00:00]} g6 {[%emt 0:00:05]} 3. Bg2 {[%emt 0:00:00]} Bg7 {[%emt 0:00:07]} 4. O-O {[%emt 0:00:00]} O-O {[%emt 0:00:03]} 5. d3 {[%emt 0:00:00]} d6 {[%emt 0:00:41]} 6. c4 {[%emt 0:00:00]} e5 {[%emt 0:00:59]} 7. Nc3 {[%emt 0:00:00]} Nc6 {[%emt 0:00:35]} 8. Rb1 {[%emt 0:00:33]} a5 {[%emt 0:01:18]} 9. a3 {[%emt 0:00:56]} h6 {[%emt 0:02:32]} 10. b4 {[%emt 0:02:33]} axb4 {[%emt 0:00:06]} 11. axb4 {[%emt 0:00:02]} Ne7 {[%emt 0:02:13]} 12. Bb2 Be6 {[%emt 0:02:20]} 13. Qd2 {[%emt 0:25:25]} Qd7 {[%emt 0:12:43]} 14. Rfc1 {[%emt 0:01:52]} Nh7 {[%emt 0:01:12]} 15. d4 {[%emt 0:24:08]} exd4 {[%emt 0:17:18]} 16. Nxd4 {[%emt 0:02:36]} Bxc4 {[%emt 0:00:06]} 17. Bxb7 {[%emt 0:00:25]} Rab8 {[%emt 0:01:01]} 18. Bg2 {[%emt 0:00:42]} Rxb4 {[%emt 0:09:51]} 19. Ne4 {[%emt 0:04:35]} Rfb8 {[%emt 0:06:56]} 20. Rc2 {[%emt 0:08:45]} c5 {[%emt 0:04:02]} 21. Nf3 {[%emt 0:01:08]} Ba2 {[%emt 0:04:51]} 22. Ra1 {[%emt 0:03:21]} Rxb2 {[%emt 0:12:27]} 23. Rxa2 {[%emt 0:00:17]} Rxa2 {[%emt 0:00:23]} 24. Rxa2 {[%emt 0:00:03]} Rb1+ {[%emt 0:02:39]} 25. Bf1 {[%emt 0:00:05]} Qh3 {[%emt 0:02:14]} 26. Ne1 {[%emt 0:00:08]} Qe6 {[%emt 0:00:27]} 27. Nxd6 {[%emt 0:09:29]} Rxe1 {[%emt 0:01:15]} 28. Ra8+ {[%emt 0:00:02]} Nf8 {[%emt 0:00:16]} 29. Qxe1 {[%emt 0:00:02]} Qxd6 {[%emt 0:00:02]} 30. e4 {[%emt 0:00:07]} Nc6 {[%emt 0:03:59]} 31. Qb1 {[%emt 0:02:38]} Ne5 {[%emt 0:01:41]} 32. Qb3 {[%emt 0:03:17]} Qc6 {[%emt 0:05:37]} 33. Qd5 {[%emt 0:00:05]} Nf3+ {[%emt 0:01:31]} 34. Kg2 {[%emt 0:00:16]} Ne1+ {[%emt 0:02:39]} 35. Kh3 {[%emt 0:07:56]} Qf6 {[%emt 0:00:50]} 36. f4 {[%emt 0:00:28]} g5 {[%emt 0:00:44]} 37. Qf5 {[%emt 0:05:49]} gxf4 {[%emt 0:00:56]} 38. Qxf6 {[%emt 0:00:44]} Bxf6 {[%emt 0:00:15]} 39. gxf4 {[%emt 0:00:01]} Bd4 {[%emt 0:00:33]} 40. Bc4 {[%emt 0:00:00]} Nc2 {[%emt 0:00:00]} 41. Rc8 {[%emt 0:12:50]} Na3 {[%emt 0:15:13]} 42. Bb3 {[%emt 0:10:48]} Nb5 {[%emt 0:00:08]} 43. Rb8 {[%emt 0:03:18]} Nc7 {[%emt 0:05:09]} 44. Kg4 {[%emt 0:02:20]} Kg7 {[%emt 0:03:01]} 45. Rb7 {[%emt 0:00:25]} Nce6 {[%emt 0:00:34]} 46. f5 {[%emt 0:00:09]} Nd8 {[%emt 0:00:41]} 47. Re7 {[%emt 0:02:18]} Nh7 {[%emt 0:01:46]} 48. Kf4 {[%emt 0:00:58]} Ng5 {[%emt 0:04:56]} 49. h4 {[%emt 0:00:21]} Bf6 {[%emt 0:00:39]} 50. Re8 {[%emt 0:00:32]} Nh7 {[%emt 0:01:22]} 51. e5 {[%emt 0:02:28]} Bxh4 {[%emt 0:00:07]} 52. f6+ {[%emt 0:00:18]} Nxf6 {[%emt 0:00:10]} 53. exf6+ {[%emt 0:00:13]} Bxf6 {[%emt 0:00:03]} 54. Bd5 {[%emt 0:00:21]} 1/2-1/2

[Event "POL-chT 2 Liga 2019"]
[Site "Poronin"]
[Date "2019.09.14"]
[Round "8.34"]
[White "Smusz, Kamil"]
[Black "Maciaga, Marcin"]
[Result "0-1"]
[ECO "A45"]
[WhiteElo "1906"]
[BlackElo "2118"]
[Annotator "NA"]
[PlyCount "138"]
[EventDate "2019.09.07"]
[EventType "team-tourn"]
[EventCountry "POL"]
[SourceTitle "playchess.com"]
[Source "ChessBase"]
[SourceQuality "1"]
[TimeControl "40/5400+30:1800+30"]

1. d4 {[%emt 0:00:00]} Nf6 {[%emt 0:00:00]} 2. Bf4 {[%emt 0:00:00]} c5 {[%emt 0:00:00]} 3. e3 {[%emt 0:00:06]} Qb6 {[%emt 0:00:00]} 4. Nc3 {[%emt 0:00:04]} d6 {[%emt 0:00:25]} 5. a3 {[%emt 0:01:25]} g6 {[%emt 0:00:33]} 6. h3 {[%emt 0:05:20]} Bg7 {[%emt 0:00:18]} 7. Nf3 {[%emt 0:00:04]} O-O {[%emt 0:00:18]} 8. Be2 {[%emt 0:02:05]} Bf5 {[%emt 0:04:57]} 9. Rb1 {[%emt 0:01:24]} cxd4 {[%emt 0:03:15]} 10. exd4 {[%emt 0:00:51]} Nc6 {[%emt 0:04:23]} 11. d5 {[%emt 0:09:23]} Nb8 {[%emt 0:14:06]} 12. O-O {[%emt 0:05:39]} a6 {[%emt 0:08:43]} 13. Re1 {[%emt 0:11:34]} Qc7 {[%emt 0:02:52]} 14. g4 {[%emt 0:14:15]} Bc8 {[%emt 0:02:24]} 15. Bf1 {[%emt 0:06:44]} b5 {[%emt 0:04:09]} 16. Bg2 {[%emt 0:02:16]} Bb7 {[%emt 0:00:57]} 17. Qd2 {[%emt 0:07:05]} Re8 {[%emt 0:05:20]} 18. Bh6 {[%emt 0:03:35]} Nbd7 {[%emt 0:01:29]} 19. Bxg7 {[%emt 0:06:38]} Kxg7 {[%emt 0:00:05]} 20. Rbd1 {[%emt 0:01:18]} Nb6 {[%emt 0:01:05]} 21. Qd4 {[%emt 0:02:22]} Kg8 {[%emt 0:04:41]} 22. Nd2 {[%emt 0:02:54]} Rac8 {[%emt 0:02:17]} 23. Nf1 {[%emt 0:03:43]} Nc4 {[%emt 0:02:48]} 24. Ne3 {[%emt 0:00:29]} Nxa3 {[%emt 0:14:23]} 25. Ne4 Nxe4 {[%emt 0:01:56]} 26. Bxe4 {[%emt 0:09:28]} Nc4 {[%emt 0:00:33]} 27. h4 {[%emt 0:01:56]} Qc5 {[%emt 0:00:18]} 28. b3 {[%emt 0:01:15]} Qxd4 {[%emt 0:00:26]} 29. Rxd4 {[%emt 0:00:22]} Nxe3 {[%emt 0:00:51]} 30. Rxe3 {[%emt 0:00:16]} a5 {[%emt 0:05:54]} 31. h5 {[%emt 0:01:34]} b4 {[%emt 0:00:32]} 32. Bd3 {[%emt 0:00:32]} Rc5 {[%emt 0:04:36]} 33. Bc4 {[%emt 0:00:23]} Kf8 {[%emt 0:04:46]} 34. hxg6 {[%emt 0:00:12]} hxg6 {[%emt 0:00:13]} 35. Rh3 {[%emt 0:01:11]} Kg7 {[%emt 0:00:27]} 36. g5 {[%emt 0:00:47]} Rh8 {[%emt 0:00:27]} 37. Re3 {[%emt 0:00:01]} e5 {[%emt 0:00:27]} 38. Rd1 {[%emt 0:01:12]} Rh4 {[%emt 0:01:35]} 39. Rg3 {[%emt 0:00:19]} Bc8 {[%emt 0:01:22]} 40. c3 {[%emt 0:00:00]} bxc3 {[%emt 0:00:00]} 41. Rxc3 {[%emt 0:01:30]} a4 {[%emt 0:05:46]} 42. Rg3 {[%emt 0:00:55]} Bf5 {[%emt 0:04:39]} 43. Re3 {[%emt 0:05:47]} Rg4+ {[%emt 0:02:33]} 44. Kf1 {[%emt 0:03:37]} Rxg5 {[%emt 0:01:36]} 45. Ra1 {[%emt 0:00:06]} Bd7 {[%emt 0:00:59]} 46. Ke2 {[%emt 0:01:06]} Rg4 {[%emt 0:04:04]} 47. Kd3 {[%emt 0:02:23]} f5 {[%emt 0:01:36]} 48. Rh3 {[%emt 0:00:46]} Rd4+ {[%emt 0:00:44]} 49. Ke2 {[%emt 0:00:26]} f4 {[%emt 0:01:03]} 50. Rd3 Rxd3 {[%emt 0:03:17]} 51. Kxd3 {[%emt 0:00:29]} Bf5+ {[%emt 0:00:19]} 52. Kc3 {[%emt 0:00:35]} axb3 {[%emt 0:00:33]} 53. Kxb3 {[%emt 0:00:05]} e4 {[%emt 0:02:30]} 54. Kc3 {[%emt 0:02:58]} Kf6 {[%emt 0:01:39]} 55. Kd4 {[%emt 0:00:20]} Rc7 {[%emt 0:07:29]} 56. Ra8 {[%emt 0:01:16]} Rb7 57. Ra6 {[%emt 0:02:25]} Ke7 {[%emt 0:02:01]} 58. Ra2 {[%emt 0:00:56]} Rb1 {[%emt 0:00:19]} 59. Ra7+ {[%emt 0:00:18]} Kf6 {[%emt 0:00:09]} 60. Ra6 {[%emt 0:00:14]} Rd1+ {[%emt 0:00:08]} 61. Kc3 {[%emt 0:00:22]} Ke5 {[%emt 0:00:16]} 62. Kc2 {[%emt 0:03:49]} Rh1 {[%emt 0:01:48]} 63. Kd2 {[%emt 0:02:24]} Rh2 {[%emt 0:00:16]} 64. Ke1 {[%emt 0:00:24]} Bg4 {[%emt 0:00:32]} 65. Ra8 {[%emt 0:01:41]} Kd4 {[%emt 0:00:19]} 66. Ra4 {[%emt 0:00:15]} Rh1+ {[%emt 0:00:51]} 67. Bf1+ {[%emt 0:01:51]} Ke5 {[%emt 0:00:04]} 68. f3 {[%emt 0:00:46]} Bxf3 {[%emt 0:00:25]} 69. Ra2 {[%emt 0:00:40]} g5 {[%emt 0:00:49]} 0-1

[Event "POL-chT 2 Liga 2019"]
[Site "Poronin"]
[Date "2019.09.14"]
[Round "8.35"]
[White "Krasiewicz, Robert"]
[Black "Mikula, Michal"]
[Result "1-0"]
[ECO "A02"]
[WhiteElo "2044"]
[BlackElo "1830"]
[Annotator "NA"]
[PlyCount "80"]
[EventDate "2019.09.07"]
[EventType "team-tourn"]
[EventCountry "POL"]
[SourceTitle "playchess.com"]
[Source "ChessBase"]
[SourceQuality "1"]
[TimeControl "40/5400+30:1800+30"]

1. f4 {[%emt 0:00:00]} c5 {[%emt 0:00:00]} 2. Nf3 {[%emt 0:00:00]} g6 {[%emt 0:01:08]} 3. g3 {[%emt 0:00:52]} Bg7 {[%emt 0:00:09]} 4. Bg2 {[%emt 0:00:03]} Nf6 {[%emt 0:00:53]} 5. O-O {[%emt 0:00:27]} O-O {[%emt 0:00:11]} 6. d3 {[%emt 0:00:03]} d5 {[%emt 0:03:47]} 7. Qe1 {[%emt 0:03:08]} Nc6 {[%emt 0:04:16]} 8. c3 {[%emt 0:01:40]} Re8 {[%emt 0:07:30]} 9. Ne5 {[%emt 0:03:37]} Qd6 {[%emt 0:05:21]} 10. e4 {[%emt 0:07:56]} Nxe5 {[%emt 0:11:00]} 11. fxe5 {[%emt 0:00:04]} Qxe5 {[%emt 0:00:06]} 12. exd5 {[%emt 0:00:15]} Qd6 {[%emt 0:10:55]} 13. Na3 {[%emt 0:12:06]} Qd8 {[%emt 0:07:39]} 14. Qf2 {[%emt 0:03:17]} Bf5 {[%emt 0:02:25]} 15. Qxc5 {[%emt 0:03:48]} Bxd3 {[%emt 0:01:40]} 16. Re1 {[%emt 0:02:04]} a6 {[%emt 0:06:59]} 17. Bf4 {[%emt 0:02:32]} Rc8 {[%emt 0:00:47]} 18. Qd4 {[%emt 0:00:57]} Bf5 {[%emt 0:02:03]} 19. Be5 {[%emt 0:00:42]} b5 {[%emt 0:00:53]} 20. Rad1 {[%emt 0:01:25]} Bf8 {[%emt 0:09:48]} 21. h3 {[%emt 0:11:10]} Nd7 {[%emt 0:04:22]} 22. g4 {[%emt 0:01:48]} Nxe5 {[%emt 0:00:06]} 23. Qxe5 {[%emt 0:01:27]} Bg7 {[%emt 0:01:19]} 24. Qe3 {[%emt 0:01:11]} Bd7 {[%emt 0:00:11]} 25. Nc2 {[%emt 0:00:21]} a5 {[%emt 0:00:45]} 26. Nd4 {[%emt 0:03:15]} b4 {[%emt 0:00:36]} 27. Nc6 {[%emt 0:02:44]} Bxc6 {[%emt 0:08:11]} 28. dxc6 {[%emt 0:00:03]} Qc7 {[%emt 0:00:07]} 29. Rd7 {[%emt 0:00:23]} Qb8 {[%emt 0:00:05]} 30. Rxe7 {[%emt 0:08:56]} Rf8 {[%emt 0:00:27]} 31. Rb7 {[%emt 0:02:37]} Qd6 {[%emt 0:01:36]} 32. Rd7 {[%emt 0:02:51]} Qb8 {[%emt 0:01:39]} 33. Bd5 {[%emt 0:03:23]} bxc3 {[%emt 0:03:29]} 34. bxc3 {[%emt 0:00:50]} Qb2 {[%emt 0:02:56]} 35. Qc1 {[%emt 0:04:20]} Qb6+ {[%emt 0:00:48]} 36. Qe3 {[%emt 0:00:48]} Qb2 {[%emt 0:00:04]} 37. Rf1 {[%emt 0:04:02]} Bxc3 {[%emt 0:03:26]} 38. Rfxf7 {[%emt 0:00:53]} Rxf7 {[%emt 0:00:08]} 39. Rxf7 {[%emt 0:00:01]} Kh8 40. Rf2 Qa1+ {Rf7 Qb2 Kh1} 1-0

[Event "POL-chT 2 Liga 2019"]
[Site "Poronin"]
[Date "2019.09.14"]
[Round "8.36"]
[White "Mirowska, Oliwia"]
[Black "Andrzejewska, Anna"]
[Result "1-0"]
[ECO "A02"]
[WhiteElo "1900"]
[BlackElo "2021"]
[Annotator "NA"]
[PlyCount "113"]
[EventDate "2019.09.07"]
[EventType "team-tourn"]
[EventCountry "POL"]
[SourceTitle "playchess.com"]
[Source "ChessBase"]
[SourceQuality "1"]
[TimeControl "40/5400+30:1800+30"]

1. f4 {[%emt 0:00:00]} g6 {[%emt 0:00:00]} 2. Nf3 {[%emt 0:00:00]} c5 {[%emt 0:00:07]} 3. g3 {[%emt 0:00:03]} Bg7 {[%emt 0:00:26]} 4. Bg2 {[%emt 0:00:17]} Nc6 {[%emt 0:00:33]} 5. O-O {[%emt 0:02:03]} d5 {[%emt 0:02:45]} 6. d3 {[%emt 0:00:55]} e6 {[%emt 0:01:43]} 7. c3 {[%emt 0:01:28]} Nge7 {[%emt 0:00:42]} 8. Qe1 {[%emt 0:00:24]} b6 {[%emt 0:01:29]} 9. e4 {[%emt 0:01:02]} dxe4 {[%emt 0:04:50]} 10. dxe4 {[%emt 0:00:11]} Ba6 {[%emt 0:01:24]} 11. Rf2 {[%emt 0:00:10]} e5 {[%emt 0:20:06]} 12. f5 {[%emt 0:02:21]} O-O {[%emt 0:05:02]} 13. g4 {[%emt 0:08:18]} Qc7 {[%emt 0:11:35]} 14. Be3 {[%emt 0:02:57]} Na5 {[%emt 0:10:21]} 15. Nbd2 {[%emt 0:02:08]} c4 {[%emt 0:05:35]} 16. Nh4 {[%emt 0:03:43]} f6 {[%emt 0:03:02]} 17. g5 {[%emt 0:09:19]} fxg5 {[%emt 0:07:17]} 18. Bxg5 {[%emt 0:00:15]} Bf6 {[%emt 0:14:57]} 19. Bxf6 {[%emt 0:02:31]} Rxf6 {[%emt 0:00:05]} 20. fxg6 {[%emt 0:00:54]} Rxf2 {[%emt 0:02:19]} 21. gxh7+ {[%emt 0:00:15]} Kxh7 {[%emt 0:00:21]} 22. Qxf2 {[%emt 0:00:13]} Qc5 {[%emt 0:00:14]} 23. Qxc5 {[%emt 0:00:49]} bxc5 {[%emt 0:00:05]} 24. Ndf3 {[%emt 0:00:30]} Nac6 {[%emt 0:01:12]} 25. Ng5+ {[%emt 0:01:02]} Kg8 {[%emt 0:02:17]} 26. Bh3 {[%emt 0:05:25]} Bc8 {[%emt 0:01:31]} 27. Be6+ {[%emt 0:01:52]} Bxe6 {[%emt 0:00:48]} 28. Nxe6 {[%emt 0:00:07]} Rb8 {[%emt 0:00:23]} 29. Rb1 {[%emt 0:01:44]} Rb5 {[%emt 0:00:12]} 30. Nf3 {[%emt 0:03:11]} Ng6 {[%emt 0:01:19]} 31. h4 {[%emt 0:01:25]} Kf7 {[%emt 0:00:33]} 32. Nfg5+ {[%emt 0:00:11]} Ke7 {[%emt 0:01:31]} 33. h5 {[%emt 0:00:35]} Nf4 {[%emt 0:00:26]} 34. Nxf4 {[%emt 0:03:34]} exf4 {[%emt 0:00:01]} 35. Nh3 {[%emt 0:01:16]} Kf6 {[%emt 0:01:24]} 36. Nxf4 {[%emt 0:00:34]} Kg5 {[%emt 0:00:44]} 37. Ne6+ {[%emt 0:01:27]} Kxh5 {[%emt 0:00:17]} 38. Kf2 {[%emt 0:00:59]} Ne5 {[%emt 0:00:41]} 39. Ke3 {[%emt 0:00:29]} Nd3 {[%emt 0:00:41]} 40. Nf4+ {[%emt 0:00:00]} Nxf4 {[%emt 0:00:00]} 41. Kxf4 {[%emt 0:00:15]} Kg6 {[%emt 0:00:58]} 42. Ke5 {[%emt 0:00:19]} Kf7 {[%emt 0:01:05]} 43. Kd5 {[%emt 0:00:49]} a6 {[%emt 0:00:17]} 44. Rf1+ {[%emt 0:00:49]} Ke7 {[%emt 0:00:11]} 45. Rf2 {[%emt 0:00:06]} Ra5 {[%emt 0:01:28]} 46. a3 {[%emt 0:00:12]} Rb5 {[%emt 0:00:38]} 47. e5 {[%emt 0:01:25]} Kd7 {[%emt 0:01:16]} 48. Rh2 {[%emt 0:00:37]} Ke7 {[%emt 0:00:58]} 49. e6 {[%emt 0:00:39]} Rb6 {[%emt 0:00:50]} 50. Re2 {[%emt 0:00:19]} Rd6+ {[%emt 0:01:16]} 51. Kxc5 {[%emt 0:00:17]} Rxe6 {[%emt 0:00:12]} 52. Rxe6+ {[%emt 0:00:10]} Kxe6 {[%emt 0:00:02]} 53. Kxc4 {[%emt 0:00:07]} Kd6 {[%emt 0:00:05]} 54. Kb4 {[%emt 0:00:18]} Kc6 {[%emt 0:00:14]} 55. Ka5 {[%emt 0:00:08]} Kb7 {[%emt 0:00:04]} 56. b4 {[%emt 0:00:07]} Ka7 {[%emt 0:00:05]} 57. c4 {[%emt 0:00:06]} 1-0

[Event "POL-chT 2 Liga 2019"]
[Site "Poronin"]
[Date "2019.09.14"]
[Round "8.37"]
[White "Miroslaw, Michal"]
[Black "Goluch, Piotr"]
[Result "1-0"]
[ECO "B18"]
[WhiteElo "2284"]
[BlackElo "2428"]
[Annotator "NA"]
[PlyCount "91"]
[EventDate "2019.09.07"]
[EventType "team-tourn"]
[EventCountry "POL"]
[SourceTitle "playchess.com"]
[Source "ChessBase"]
[SourceQuality "1"]
[TimeControl "40/5400+30:1800+30"]

1. e4 {[%emt 0:00:00]} c6 {[%emt 0:00:00]} 2. d4 {[%emt 0:00:00]} d5 {[%emt 0:00:00]} 3. Nd2 {[%emt 0:00:00]} dxe4 {[%emt 0:00:00]} 4. Nxe4 {[%emt 0:00:05]} Bf5 {[%emt 0:00:00]} 5. Nc5 {[%emt 0:00:25]} b6 {[%emt 0:00:00]} 6. Nb3 {[%emt 0:00:06]} e6 {[%emt 0:00:15]} 7. Nf3 {[%emt 0:00:22]} Nf6 {[%emt 0:04:47]} 8. g3 {[%emt 0:00:40]} Nbd7 {[%emt 0:06:22]} 9. Bg2 {[%emt 0:00:48]} Rc8 {[%emt 0:04:12]} 10. O-O {[%emt 0:04:33]} Be7 {[%emt 0:00:30]} 11. c4 {[%emt 0:01:09]} O-O {[%emt 0:03:13]} 12. Qe2 {[%emt 0:00:44]} Qc7 {[%emt 0:11:51]} 13. Bf4 {[%emt 0:01:27]} Bd6 {[%emt 0:00:33]} 14. Bxd6 {[%emt 0:00:07]} Qxd6 {[%emt 0:00:04]} 15. Rfd1 {[%emt 0:00:40]} Bg4 {[%emt 0:03:36]} 16. h3 {[%emt 0:03:32]} Bxf3 {[%emt 0:00:06]} 17. Qxf3 {[%emt 0:00:20]} Rfd8 {[%emt 0:00:29]} 18. Qe3 {[%emt 0:09:30]} b5 {[%emt 0:04:50]} 19. Na5 {[%emt 0:02:33]} Re8 {[%emt 0:16:48]} 20. c5 {[%emt 0:06:51]} Qc7 {[%emt 0:00:04]} 21. Nxc6 {[%emt 0:01:32]} h6 {[%emt 0:16:15]} 22. Qa3 {[%emt 0:03:33]} Nd5 {[%emt 0:03:54]} 23. Nb4 {[%emt 0:34:01]} Nxb4 {[%emt 0:00:10]} 24. Qxb4 {[%emt 0:00:02]} Rb8 {[%emt 0:00:03]} 25. Rac1 {[%emt 0:00:31]} Nf6 {[%emt 0:00:20]} 26. Rd3 {[%emt 0:04:40]} a5 {[%emt 0:00:12]} 27. Qd2 {[%emt 0:00:25]} Red8 {[%emt 0:01:37]} 28. d5 {[%emt 0:02:30]} exd5 {[%emt 0:00:28]} 29. Bxd5 {[%emt 0:00:06]} Nxd5 {[%emt 0:01:12]} 30. Rxd5 {[%emt 0:00:05]} Rxd5 {[%emt 0:00:02]} 31. Qxd5 {[%emt 0:00:02]} Rd8 {[%emt 0:00:05]} 32. Qe4 {[%emt 0:00:43]} Rd2 {[%emt 0:00:32]} 33. Rc2 {[%emt 0:14:47]} Rd1+ {[%emt 0:00:04]} 34. Kg2 {[%emt 0:00:04]} g5 {[%emt 0:00:03]} 35. c6 {[%emt 0:01:38]} b4 {[%emt 0:01:04]} 36. Rc5 {[%emt 0:01:46]} Rd2 {[%emt 0:00:34]} 37. Rd5 {[%emt 0:01:36]} Rxd5 {[%emt 0:06:42]} 38. Qxd5 {[%emt 0:00:01]} Kf8 {[%emt 0:00:51]} 39. Kf3 {[%emt 0:02:40]} Kg7 {[%emt 0:00:47]} 40. Qd7 {[%emt 0:00:00]} Qb6 {[%emt 0:00:00]} 41. c7 {[%emt 0:02:33]} b3 {[%emt 0:00:38]} 42. c8=Q {[%emt 0:00:51]} Qf6+ {[%emt 0:00:16]} 43. Qf5 {[%emt 0:00:50]} Qxb2 {[%emt 0:00:53]} 44. Qc7 {[%emt 0:00:33]} bxa2 {[%emt 0:00:58]} 45. Qcxf7+ {[%emt 0:00:11]} Kh8 {[%emt 0:00:04]} 46. Q5h7# {[%emt 0:00:08]} 1-0